bitfinex/quotes_ETHUSD_20240927
["timestamp","ask_amount","ask_price","bid_price","bid_amount"]
[1727455946277,5.29934,2724.1,2723.6,3.67153]
[1727455946485,3.67104,2724.1,2724.0,3.54257571]
[1727455946641,3.67067,2724.3,2724.0,3.54257571]
[1727455946847,3.67067,2724.3,2724.0,0.06100682]
[1727455947165,3.67067,2724.3,2723.7,3.54257571]
[1727455947166,3.67093,2724.1,2723.7,3.54257571]
[1727455947675,3.67107,2724.0,2723.7,3.54257571]
[1727455948387,1.6537,2724.4,2723.7,3.54257571]
[1727455948388,3.67071,2724.3,2723.7,3.54257571]
[1727455948545,5.32424,2724.4,2723.8,5.27842]
[1727455948747,5.32424,2724.4,2723.9,3.67112]
[1727455949147,1.5253,2724.8,2724.3,3.54257571]
[1727455949375,3.66969,2725.1,2724.6,7.21282571]
[1727455949561,3.66952,2725.2,2724.9,3.54257571]
[1727455949867,3.66961,2725.1,2724.9,3.54257571]
[1727455950063,3.66928,2725.4,2724.9,3.54257571]
[1727455950380,3.66919,2725.4,2724.9,7.21242571]
[1727455950582,3.66919,2725.4,2724.9,3.54257571]
[1727455950783,3.66945,2725.3,2724.9,3.54257571]
[1727455951686,3.66886,2725.7,2724.9,5.08587571]
[1727455951856,3.66886,2725.7,2724.9,8.75572571]
[1727455952051,5.18488,2725.9,2724.9,8.75572571]
[1727455952362,3.66858,2725.9,2724.9,8.75572571]
[1727455952578,7.33716,2725.9,2724.9,8.75572571]
[1727455952988,3.66879,2725.7,2724.9,8.75572571]
[1727455954064,3.66855,2725.9,2724.9,8.75572571]
[1727455954752,3.66855,2725.9,2724.9,11.75572571]
[1727455954955,3.66892,2725.6,2724.9,11.75572571]
[1727455955587,1.6185,2726.2,2724.9,11.75572571]
[1727455955787,3.66885,2725.7,2724.9,11.75572571]
[1727455956208,7.33771,2725.7,2724.9,11.75572571]
[1727455956392,7.33775,2725.7,2724.9,11.75572571]
[1727455956592,3.66893,2725.6,2724.9,11.75572571]
[1727455957309,3.66885,2725.7,2724.9,11.81466811]
[1727455957697,3.0,2726.3,2724.9,8.81466811]
[1727455957698,5.28108,2725.9,2724.9,8.81466811]
[1727455959210,1.6125,2725.9,2724.9,8.81466811]
[1727455960280,1.6125,2725.9,2724.9,11.81466811]
[1727455960887,5.28108,2725.9,2724.9,11.81466811]
[1727455961096,3.66879,2725.7,2724.9,11.81466811]
[1727455962212,3.0,2726.3,2724.9,11.81466811]
[1727455962213,1.5406,2725.3,2724.9,0.0589424]
[1727455962518,3.66954,2725.2,2724.6,3.54257571]
[1727455962715,3.66968,2725.1,2724.9,0.05369135]
[1727455962898,3.66968,2725.1,2724.6,3.54257571]
[1727455963219,6.28616158,2725.0,2724.6,3.54257571]
[1727455963387,6.28616158,2725.0,2724.7,0.05374399]
[1727455963388,5.21048,2724.9,2724.7,0.05374399]
[1727455963926,5.21048,2724.9,2724.3,7.21321571]
[1727455963927,3.67009,2724.8,2724.3,7.21321571]
[1727455964213,3.67019,2724.7,2724.3,3.54257571]
[1727455964592,7.34018,2724.8,2724.3,3.54257571]
[1727455964775,3.67015,2724.7,2724.3,3.54257571]
[1727455965314,3.67028,2724.6,2724.3,3.54257571]
[1727455965677,1.5406,2724.9,2724.5,3.54257571]
[1727455965995,2.61642158,2725.0,2724.5,3.54257571]
[1727455965996,2.61642158,2725.0,2724.8,3.54257571]
[1727455969521,6.28620158,2725.0,2724.8,3.54257571]
[1727455970089,3.66985,2724.9,2724.5,3.54257571]
[1727455970415,1.6487,2724.6,2724.2,7.21336571]
[1727455970616,1.6487,2724.6,2724.2,3.54257571]
[1727455970790,3.67081,2724.2,2723.9,3.54257571]
[1727455970995,2.61642158,2725.0,2723.9,3.54257571]
[1727455970996,3.67107,2724.0,2723.9,3.54257571]
[1727455971254,3.6714,2723.8,2723.6,3.54257571]
[1727455971477,3.6714,2723.8,2723.3,7.21450571]
[1727455971819,0.05653788,2723.7,2723.1,3.54257571]
[1727455972036,3.67161,2723.6,2723.3,3.54257571]
[1727455972352,3.67161,2723.6,2723.2,0.05026044]
[1727455972548,3.67161,2723.6,2723.4,0.05020775]
[1727455972549,3.67174,2723.5,2723.4,0.05020775]
[1727455972711,3.67188,2723.4,2723.3,0.0502341]
[1727455972911,3.67188,2723.4,2722.4,3.67312]
[1727455972912,3.67264,2722.9,2722.4,3.67312]
[1727455973350,3.67264,2722.9,2722.5,0.0476507]
[1727455975713,5.22593,2723.3,2722.5,0.0476507]
[1727455975915,7.34558,2722.8,2722.3,4.35548163]
[1727455976114,7.34558,2722.8,2722.6,0.04762433]
[1727455976355,3.67259,2722.9,2722.4,3.6732]
[1727455976557,3.67259,2722.9,2722.7,0.04759797]
[1727455976754,3.67259,2722.9,2722.4,3.6732]
[1727455976960,3.67259,2722.9,2722.8,0.04757162]
[1727455977133,3.67259,2722.9,2722.4,3.6732]
[1727455977467,3.67259,2722.9,2722.5,0.0476507]
[1727455977753,3.67247,2723.0,2722.5,0.0476507]
[1727455977754,3.67272,2722.8,2722.5,0.0476507]
[1727455978128,3.67272,2722.8,2722.3,8.02875163]
[1727455978334,3.67272,2722.8,2722.6,0.04762433]
[1727455978541,3.67272,2722.8,2722.3,8.02875163]
[1727455978754,3.67272,2722.8,2721.8,3.67401]
[1727455978755,8.99302,2722.8,2722.7,0.04759797]
[1727455978954,8.99302,2722.8,2721.8,5.2715]
[1727455978955,3.6731,2722.5,2721.8,5.2715]
[1727455979179,3.6731,2722.5,2722.0,3.67373]
[1727455979360,3.6729,2722.7,2722.1,8.02902163]
[1727455979677,3.6729,2722.7,2722.1,8.07590263]
[1727455980034,3.6729,2722.7,2722.2,3.6734]
[1727455980234,3.6729,2722.7,2722.2,3.72025463]
[1727455981333,3.67306,2722.6,2722.2,0.04685463]
[1727455981539,3.67323,2722.4,2722.2,0.04685463]
[1727455982136,3.0,2723.2,2722.2,0.04685463]
[1727455982336,3.67223,2723.2,2722.5,4.35548163]
[1727455982633,3.67279,2722.8,2722.6,0.04674917]
[1727455983856,3.67251,2723.0,2722.5,4.35548163]
[1727455984063,3.67251,2723.0,2722.7,0.04672281]
[1727455984370,7.34501,2723.0,2722.5,4.35548163]
[1727455984572,3.0,2723.4,2722.9,4.35548163]
[1727455984573,3.67192,2723.4,2722.9,4.35548163]
[1727455984737,3.67182,2723.5,2722.9,4.35548163]
[1727455984738,3.67182,2723.5,2723.0,3.67241]
[1727455984940,8.8991,2723.7,2723.1,3.6722]
[1727455985271,5.22754,2723.7,2723.2,0.04659103]
[1727455985474,5.22754,2723.7,2723.2,3.71873103]
[1727455985775,3.67162,2723.6,2723.2,0.04659103]
[1727455986140,3.67162,2723.6,2723.0,7.34462]
[1727455986345,3.67162,2723.6,2723.3,0.04656469]
[1727455986571,3.67162,2723.6,2723.0,7.34462]
[1727455986876,3.67225,2723.2,2722.9,4.35548163]
[1727455987097,3.67225,2723.2,2722.6,1.6456]
[1727455987098,5.18217,2723.1,2722.6,1.6456]
[1727455987866,1.5098,2723.1,2722.6,1.6456]
[1727455988071,3.67243,2723.0,2722.6,1.6456]
[1727455988272,1.5098,2723.1,2722.6,1.6456]
[1727455988580,3.67243,2723.0,2722.6,1.6456]
[1727455988778,5.18208,2723.1,2722.6,5.31844]
[1727455989144,3.67228,2723.1,2722.6,5.31844]
[1727455989849,3.67256,2722.9,2722.5,4.35548163]
[1727455991680,7.3452,2722.9,2722.5,4.35548163]
[1727455991982,3.67269,2722.8,2722.5,4.35548163]
[1727455992488,3.67209,2723.3,2722.6,5.26898]
[1727455992651,3.67209,2723.3,2722.8,3.67262]
[1727455992984,3.67209,2723.3,2722.9,4.35548163]
[1727455993586,3.67215,2723.2,2722.9,4.35548163]
[1727455994104,5.26869,2723.4,2722.9,8.02796163]
[1727455994304,3.67189,2723.4,2722.9,8.02796163]
[1727455994504,4.5698,2723.7,2723.0,3.67233]
[1727455994505,5.24131,2723.7,2723.0,3.67233]
[1727455994695,3.6716,2723.7,2723.2,3.67207]
[1727455995107,3.67136,2723.8,2723.2,3.67207]
[1727455995264,3.67136,2723.8,2723.2,7.34413]
[1727455995466,1.5632,2724.3,2723.3,5.87998163]
[1727455995766,7.34184,2724.2,2723.7,3.67146]
[1727455995991,3.67108,2724.0,2723.6,3.6716]
[1727455996196,3.67092,2724.2,2723.3,9.55195163]
[1727455996364,3.67149,2723.7,2723.3,9.55195163]
[1727455996565,3.67149,2723.7,2723.3,5.87998163]
[1727455996976,3.67149,2723.7,2723.3,9.55194163]
[1727455997868,3.67092,2724.2,2723.6,3.67153]
[1727455998073,4.6414,2724.5,2723.3,4.35548163]
[1727455998074,4.6414,2724.5,2723.4,1.5001]
[1727455998282,3.67133,2723.9,2723.4,5.17197]
[1727455998519,1.6414,2724.5,2723.7,3.67146]
[1727455998804,1.6414,2724.5,2723.8,3.67133]
[1727455998805,3.67074,2724.3,2723.8,3.67133]
[1727455999805,3.6708,2724.2,2723.7,8.02684163]
[1727456000122,3.6708,2724.2,2723.8,3.6713]
[1727456000413,7.34128,2724.4,2723.8,3.6713]
[1727456000976,3.67078,2724.3,2723.8,3.6713]
[1727456001184,3.67019,2724.7,2724.2,3.67073]
[1727456001509,5.20532,2724.9,2724.4,3.67052]
[1727456001901,3.67006,2724.8,2724.3,3.67066]
[1727456002095,3.67006,2724.8,2724.5,0.04574872]
[1727456002414,3.67006,2724.8,2724.3,3.67066]
[1727456002706,8.87529,2724.9,2724.1,4.35548163]
[1727456002909,5.20532,2724.9,2724.4,3.71620504]
[1727456003115,5.20532,2724.9,2724.4,3.67043]
[1727456003407,5.20532,2724.9,2724.5,3.71613872]
[1727456003910,2.61642158,2725.0,2724.5,3.71613872]
[1727456003911,2.61642158,2725.0,2724.6,3.67025]
[1727456004115,6.28617158,2725.0,2724.6,0.04572239]
[1727456004708,6.28615158,2725.0,2724.6,0.04572239]
[1727456005115,2.61642158,2725.0,2724.6,3.71598239]
[1727456005316,2.61642158,2725.0,2724.7,3.67012]
[1727456005514,2.61642158,2725.0,2724.7,3.71581607]
[1727456006510,2.61642158,2725.0,2724.7,7.38586607]
[1727456006674,2.61642158,2725.0,2724.7,3.71574607]
[1727456006871,2.61642158,2725.0,2724.7,0.04569607]
[1727456007074,6.28621158,2725.0,2724.5,9.55276163]
[1727456007286,6.28621158,2725.0,2724.8,0.04419822]
[1727456007611,2.61642158,2725.0,2724.9,3.66985]
[1727456007798,2.61642158,2725.0,2724.9,3.71402191]
[1727456009090,2.61642158,2725.0,2724.9,0.04417191]
[1727456009290,2.61642158,2725.0,2724.8,3.66999]
[1727456009521,2.61642158,2725.0,2724.9,0.04417191]
[1727456010119,2.61642158,2725.0,2724.7,3.6701]
[1727456010303,2.61642158,2725.0,2724.9,0.04417191]
[1727456010616,2.61642158,2725.0,2724.8,3.57899797]
[1727456010617,6.28617158,2725.0,2724.8,3.57899797]
[1727456010817,6.28617158,2725.0,2724.9,0.04417191]
[1727456011542,2.61642158,2725.0,2724.9,0.04417191]
[1727456012591,4.24712158,2725.0,2724.9,0.04417191]
[1727456012924,3.67012,2724.8,2724.2,3.67073]
[1727456013081,3.67019,2724.7,2724.2,3.67073]
[1727456013421,3.67033,2724.6,2724.1,5.15639975]
[1727456013592,3.6704,2724.5,2724.1,5.15639975]
[1727456013798,3.67033,2724.6,2724.1,5.15639975]
[1727456014124,3.6704,2724.5,2724.1,8.82729975]
[1727456014326,3.67033,2724.6,2724.1,8.82729975]
[1727456014485,7.91689158,2725.0,2724.1,3.53479975]
[1727456014486,3.67049,2724.5,2724.1,3.53479975]
[1727456014680,3.67088,2724.2,2723.8,3.53479975]
[1727456015619,3.67095,2724.1,2723.6,8.75218975]
[1727456016088,3.67095,2724.1,2723.8,3.53479975]
[1727456016284,1.5311,2724.4,2723.8,3.53479975]
[1727456016487,5.20169,2724.4,2724.2,3.53479975]
[1727456017118,5.20169,2724.4,2724.3,0.04215376]
[1727456017321,3.67044,2724.5,2724.2,3.53479975]
[1727456017520,3.67044,2724.5,2724.3,0.04215376]
[1727456017721,3.67044,2724.5,2724.2,3.53479975]
[1727456017920,3.67044,2724.5,2724.4,0.04212743]
[1727456018185,3.67044,2724.5,2724.2,3.53479975]
[1727456018423,3.67044,2724.5,2724.4,0.04212743]
[1727456018887,3.67044,2724.5,2724.2,3.53479975]
[1727456019082,3.67044,2724.5,2724.4,0.04212743]
[1727456019422,3.67044,2724.5,2724.2,3.53479975]
[1727456019423,1.6391,2724.7,2724.2,3.53479975]
[1727456019726,3.67004,2724.8,2724.3,5.26878376]
[1727456019912,3.67004,2724.8,2724.3,5.34218937]
[1727456020488,3.67004,2724.8,2724.3,1.67155937]
[1727456020683,3.67004,2724.8,2724.5,3.53479975]
[1727456021215,3.67004,2724.8,2724.6,0.0421202]
[1727456021910,3.67012,2724.7,2724.6,0.0421202]
[1727456023533,3.67012,2724.7,2724.2,3.53479975]
[1727456023534,3.67034,2724.6,2724.2,3.53479975]
[1727456024603,3.66987,2724.9,2724.2,3.53479975]
[1727456024810,3.67059,2724.4,2724.0,1.5529]
[1727456025127,7.3412,2724.4,2724.0,1.5529]
[1727456025328,3.67059,2724.4,2724.0,1.5529]
[1727456025506,7.34123,2724.4,2724.0,1.5529]
[1727456025710,3.67059,2724.4,2724.0,1.5529]
[1727456026719,3.67082,2724.2,2723.9,3.53479975]
[1727456027328,3.67059,2724.4,2723.9,3.53479975]
[1727456027329,3.67067,2724.3,2723.9,3.53479975]
[1727456027495,3.67099,2724.1,2723.6,7.20638975]
[1727456027697,3.67098,2724.1,2723.6,7.20638975]
[1727456027910,3.67098,2724.1,2723.6,10.87791975]
[1727456028105,3.67098,2724.1,2723.7,3.67145]
[1727456029316,1.5057,2724.5,2723.2,6.67211]
[1727456029317,1.5057,2724.5,2724.0,3.67104]
[1727456029530,3.67062,2724.4,2724.3,3.53479975]
[1727456029932,3.67062,2724.4,2724.0,0.0734138]
[1727456029933,3.67072,2724.3,2724.0,3.60821355]
[1727456030110,3.67072,2724.3,2724.0,3.53479975]
[1727456030736,3.67053,2724.4,2724.0,3.53479975]
[1727456031939,3.67053,2724.4,2723.9,5.22089]
[1727456032140,7.34114,2724.4,2724.1,3.57714238]
[1727456032338,7.34114,2724.4,2724.1,3.53479975]
[1727456032639,7.34114,2724.4,2724.2,0.0423163]
[1727456032938,3.66924,2725.4,2724.5,1.5015]
[1727456033158,3.66924,2725.4,2724.9,7.20464975]
[1727456033439,3.66943,2725.3,2724.9,3.53479975]
[1727456033640,3.66943,2725.3,2724.9,3.57695449]
[1727456033803,3.66948,2725.2,2724.9,3.57695449]
[1727456034231,3.66963,2725.1,2724.9,0.04215474]
[1727456034752,3.66963,2725.1,2724.9,0.04201287]
[1727456034909,3.66963,2725.1,2724.7,3.67009]
[1727456035105,3.66929,2725.4,2724.9,0.04201287]
[1727456035309,3.66947,2725.2,2724.7,3.67009]
[1727456035608,3.66947,2725.2,2724.9,0.04201287]
[1727456035803,3.66947,2725.2,2724.8,0.04203919]
[1727456036137,3.66947,2725.2,2724.9,0.04201287]
[1727456036445,6.28617158,2725.0,2724.6,3.53479975]
[1727456036658,6.28617158,2725.0,2724.9,0.04201287]
[1727456036802,6.28617158,2725.0,2724.6,3.53479975]
[1727456037002,6.28617158,2725.0,2724.9,0.04201287]
[1727456037206,6.28617158,2725.0,2724.6,3.53479975]
[1727456037407,2.61642158,2725.0,2724.9,5.19821262]
[1727456037709,2.61642158,2725.0,2724.9,8.86777317]
[1727456038817,2.61642158,2725.0,2724.9,0.04172342]
[1727456041751,2.61642158,2725.0,2724.8,3.66996]
[1727456042051,2.61642158,2725.0,2724.9,0.04009923]
[1727456042755,6.28614158,2725.0,2724.9,0.04009923]
[1727456043048,6.28614158,2725.0,2724.3,3.53479975]
[1727456043049,3.67014,2724.7,2724.3,3.53479975]
[1727456043426,7.33988,2724.9,2724.3,3.53479975]
[1727456043626,3.67001,2724.8,2724.3,3.53479975]
[1727456043821,3.67014,2724.7,2724.3,3.53479975]
[1727456044050,3.6699,2724.9,2724.3,7.20545975]
[1727456044220,3.67,2724.8,2724.3,7.20545975]
[1727456045656,3.67,2724.8,2724.3,3.53479975]
[1727456045879,1.5325,2724.5,2723.6,2.09613477]
[1727456046017,3.67095,2724.1,2723.7,3.67144]
[1727456046222,3.66950428,2724.1,2723.7,3.67144]
[1727456046675,3.67081,2724.2,2723.7,3.67144]
[1727456046990,3.671,2724.1,2723.7,3.67145]
[1727456047190,7.34156,2724.3,2723.8,0.03819423]
[1727456047393,3.67082,2724.2,2723.8,0.03819423]
[1727456049762,5.20299,2724.5,2723.8,7.24431398]
[1727456049973,3.67074,2724.3,2723.8,7.24431398]
[1727456050282,3.67054,2724.4,2723.9,3.67119]
[1727456050797,5.20295,2724.5,2724.0,3.671]
[1727456051375,5.20295,2724.5,2724.1,0.03811522]
[1727456051975,3.67053,2724.4,2724.1,0.03811522]
[1727456052170,3.67053,2724.4,2723.9,7.34233]
[1727456052401,3.67053,2724.4,2724.2,0.03808889]
[1727456052897,3.67053,2724.4,2723.9,7.34227]
[1727456053055,3.67053,2724.4,2724.3,0.03806256]
[1727456053260,1.5325,2724.5,2724.0,3.67107]
[1727456053455,5.20292,2724.5,2724.0,3.67107]
[1727456053685,5.20292,2724.5,2724.1,0.03811522]
[1727456056356,3.67054,2724.4,2724.1,0.03811522]
[1727456056561,3.67054,2724.4,2723.9,7.41566617]
[1727456056786,3.67054,2724.4,2724.2,0.03851382]
[1727456057112,3.67054,2724.4,2723.9,7.41566617]
[1727456057403,3.67054,2724.4,2724.3,0.03848749]
[1727456057629,3.67054,2724.4,2723.9,7.41566617]
[1727456057901,3.67054,2724.4,2724.3,0.03848749]
[1727456058058,3.67054,2724.4,2723.9,7.41567617]
[1727456058263,3.67054,2724.4,2724.0,3.70960649]
[1727456058499,3.67054,2724.4,2724.1,1.5303]
[1727456058675,3.67027,2724.6,2724.2,3.67078]
[1727456058885,3.67027,2724.6,2724.2,3.70929382]
[1727456059086,5.21293,2724.7,2724.2,3.70929382]
[1727456059315,6.67008,2724.8,2724.3,3.6706]
[1727456059316,3.67005,2724.8,2724.3,3.6706]
[1727456059611,3.67013,2724.7,2724.3,3.70908749]
[1727456060187,3.67013,2724.7,2724.3,0.03848749]
[1727456060372,3.67013,2724.7,2724.2,3.67079]
[1727456060577,3.0,2724.9,2724.4,0.03846117]
[1727456060578,3.67027,2724.6,2724.4,0.03846117]
[1727456060774,3.67027,2724.6,2723.9,3.67107]
[1727456060970,3.67027,2724.6,2724.0,3.67101]
[1727456060971,5.32877,2724.5,2724.0,3.67101]
[1727456061781,5.32877,2724.5,2723.9,3.67107]
[1727456062218,5.32877,2724.5,2724.0,0.03856649]
[1727456062712,3.67086,2724.2,2724.0,0.03856649]
[1727456062873,5.3288,2724.5,2724.0,0.03856649]
[1727456063074,3.67032,2724.6,2724.2,3.67079]
[1727456063389,3.67032,2724.6,2724.3,0.03848749]
[1727456063601,3.67032,2724.6,2724.2,3.67079]
[1727456063910,3.67032,2724.6,2724.3,0.03848749]
[1727456064228,5.32341,2724.7,2724.2,3.67079]
[1727456064413,3.67034,2724.6,2724.4,0.03846117]
[1727456064717,3.67021,2724.7,2724.3,0.03848749]
[1727456064918,3.67021,2724.7,2724.5,0.03843484]
[1727456064919,3.67026,2724.6,2724.5,0.03843484]
[1727456065086,3.67026,2724.6,2724.1,8.73300975]
[1727456065287,3.67076,2724.3,2723.9,1.6178]
[1727456065513,3.67076,2724.3,2724.2,0.03851382]
[1727456065724,3.67076,2724.3,2723.8,7.20612975]
[1727456066011,1.5911,2724.6,2724.2,0.03846849]
[1727456066176,1.5911,2724.6,2724.1,1.5071]
[1727456066376,3.67046,2724.5,2724.3,0.03844216]
[1727456066812,3.67046,2724.5,2724.1,1.5071]
[1727456067120,3.67035,2724.6,2724.4,0.03864815]
[1727456067281,3.67035,2724.6,2724.1,8.71282975]
[1727456067484,3.67035,2724.6,2724.2,0.03870081]
[1727456067686,3.67013,2724.7,2724.3,3.67066]
[1727456067998,3.67013,2724.7,2724.4,0.03864815]
[1727456068192,1.6318,2724.9,2724.4,3.5734479]
[1727456068391,2.61642158,2725.0,2724.6,3.67024]
[1727456068727,6.28616158,2725.0,2724.7,1.5636]
[1727456068935,3.66994,2724.9,2724.7,0.03845018]
[1727456069306,3.66999,2724.8,2724.4,3.53479975]
[1727456070007,2.61642158,2725.0,2724.6,3.67017]
[1727456070324,3.66987,2724.9,2724.5,3.67039]
[1727456070500,3.66987,2724.9,2724.4,7.20525975]
[1727456070701,3.67006,2724.8,2724.4,3.53479975]
[1727456070909,3.66987,2724.9,2724.4,3.53479975]
[1727456071114,3.66987,2724.9,2724.4,7.20529975]
[1727456071753,3.66987,2724.9,2724.4,3.53479975]
[1727456071901,3.66987,2724.9,2724.4,7.20525975]
[1727456072230,2.61642158,2725.0,2724.4,7.20525975]
[1727456072438,6.28616158,2725.0,2724.4,7.20525975]
[1727456072938,2.61642158,2725.0,2724.4,10.87565975]
[1727456073438,3.66988,2724.9,2724.3,5.23425]
[1727456073611,1.5263,2724.8,2724.1,7.20567975]
[1727456073794,3.6702,2724.7,2724.1,7.20567975]
[1727456074000,3.6702,2724.7,2724.2,3.67079]
[1727456075536,5.1963,2724.8,2724.2,3.67079]
[1727456076446,5.1963,2724.8,2724.2,7.34152]
[1727456076651,5.1963,2724.8,2724.2,3.67073]
[1727456076855,2.61642158,2725.0,2724.5,1.6194]
[1727456077028,2.61642158,2725.0,2724.6,3.67025]
[1727456077228,2.61642158,2725.0,2724.6,3.7086755]
[1727456079652,2.61642158,2725.0,2724.7,3.53479975]
[1727456079963,2.61642158,2725.0,2724.9,1.6312]
[1727456080255,2.61642158,2725.0,2724.9,5.30105]
[1727456080461,2.61642158,2725.0,2724.9,5.3392719]
[1727456082737,2.61642158,2725.0,2724.9,1.6694219]
[1727456082934,2.61642158,2725.0,2724.9,5.3392719]
[1727456088075,2.61642158,2725.0,2724.9,1.6694219]
[1727456088239,2.61642158,2725.0,2724.9,0.0382219]
[1727456088870,2.61642158,2725.0,2724.7,7.20490975]
[1727456089038,2.61642158,2725.0,2724.9,0.03759876]
[1727456089240,2.61642158,2725.0,2724.7,10.87496975]
[1727456089438,2.61642158,2725.0,2724.9,0.03759876]
[1727456089640,2.61642158,2725.0,2724.7,10.87496975]
[1727456089886,2.61642158,2725.0,2724.9,0.03759876]
[1727456090195,2.61642158,2725.0,2724.9,3.70744876]
[1727456090375,2.61642158,2725.0,2724.9,5.26514876]
[1727456090978,1.5865,2726.2,2725.8,3.53479975]
[1727456091132,1.5865,2726.2,2725.9,3.66842]
[1727456091337,3.66752,2726.7,2725.6,1.5577]
[1727456091338,5.19071,2726.7,2726.1,7.20301975]
[1727456091549,1.5232,2726.7,2726.2,1.6541]
[1727456091742,1.5232,2726.7,2726.0,0.03733205]
[1727456091743,3.66775,2726.5,2726.0,0.03733205]
[1727456092105,3.66775,2726.5,2725.8,7.20332975]
[1727456092106,3.66773,2726.5,2726.2,0.03727946]
[1727456092252,3.66773,2726.5,2725.6,3.6689]
[1727456092253,3.66806,2726.3,2726.1,0.03696035]
[1727456092597,3.66806,2726.3,2725.4,7.33827]
[1727456092598,5.309,2726.2,2725.4,7.33827]
[1727456092898,5.309,2726.2,2725.2,8.84596975]
[1727456093063,3.66847,2726.0,2725.2,7.20416975]
[1727456093388,3.66847,2726.0,2725.0,3.66969]
[1727456093389,3.53479975,2725.9,2724.9,1.6352]
[1727456093597,5.30296,2725.3,2724.6,3.67016]
[1727456093780,1.6336,2725.3,2724.8,3.6699]
[1727456094645,7.20322975,2726.0,2724.2,8.74734975]
[1727456094646,1.6001,2725.1,2724.2,8.74734975]
[1727456094852,1.6001,2725.1,2724.2,3.53479975]
[1727456095061,1.6001,2725.1,2724.6,3.67024]
[1727456095262,5.26969,2725.1,2724.5,3.67038]
[1727456095493,5.26969,2725.1,2724.4,3.67043]
[1727456095667,1.6001,2725.1,2724.5,3.67037]
[1727456096188,1.6001,2725.1,2724.6,3.67025]
[1727456097378,5.26969,2725.1,2724.4,3.67043]
[1727456097554,3.66973,2725.0,2724.4,3.67043]
[1727456097750,3.0,2725.2,2724.7,3.67012]
[1727456100491,3.66933,2725.3,2724.7,3.67012]
[1727456100798,3.0,2725.2,2724.7,3.67004]
[1727456101110,3.0,2725.2,2724.8,3.66997]
[1727456101813,1.5449,2725.4,2725.1,3.6695]
[1727456102096,1.5449,2725.4,2724.9,3.66977]
[1727456102308,3.66873,2725.8,2725.1,3.66957]
[1727456102476,1.5768,2726.0,2725.3,3.66924]
[1727456102666,5.24525,2726.0,2725.5,3.66904]
[1727456102866,3.66852,2725.9,2725.3,3.66923]
[1727456103068,3.66852,2725.9,2725.4,3.66917]
[1727456103859,5.24519,2726.0,2725.2,0.07338546]
[1727456104104,5.24519,2726.0,2725.3,3.66931]
[1727456104265,5.24519,2726.0,2725.5,3.66895]
[1727456105600,1.5768,2726.0,2725.5,3.66894]
[1727456105972,1.5768,2726.0,2725.5,7.33791]
[1727456106176,3.66812,2726.2,2725.6,3.66886]
[1727456106369,3.6674,2726.8,2726.2,3.66802]
[1727456106706,1.5343,2726.8,2725.8,3.66852]
[1727456107011,3.66771,2726.5,2725.9,3.70455283]
[1727456107508,3.66763,2726.6,2725.9,3.70455283]
[1727456107680,3.66763,2726.6,2726.0,3.66835]
[1727456108064,3.66763,2726.6,2726.1,0.03421266]
[1727456108510,3.66784,2726.4,2726.1,0.03421266]
[1727456108722,1.5343,2726.3,2726.1,0.03421266]
[1727456109020,1.5343,2726.3,2726.2,0.03418637]
[1727456109600,1.5343,2726.3,2726.0,3.66829]
[1727456109920,1.5343,2726.3,2726.1,0.03421266]
[1727456110064,4.522,2726.7,2726.1,0.03421266]
[1727456110268,1.522,2726.7,2726.2,3.66801]
[1727456110564,1.522,2726.7,2726.3,3.70212008]
[1727456111004,1.522,2726.7,2726.3,0.03416008]
[1727456111303,5.18951,2726.7,2726.1,3.66824]
[1727456111489,1.522,2726.7,2726.4,0.03413379]
[1727456111680,1.522,2726.7,2726.1,3.66811]
[1727456111886,5.18951,2726.7,2726.5,0.0341075]
[1727456112089,5.18951,2726.7,2726.1,3.66811]
[1727456112297,8.85702,2726.7,2726.6,0.03408122]
[1727456112587,5.18951,2726.7,2726.6,0.03408122]
[1727456112797,1.6115,2726.6,2725.3,1.5555]
[1727456112994,10.80884763,2726.7,2725.5,3.66904]
[1727456112995,1.6115,2726.0,2725.5,3.66904]
[1727456113402,1.6115,2726.0,2725.4,3.66908]
[1727456113578,7.08479975,2726.7,2725.9,3.66841]
[1727456113579,3.0,2726.6,2725.9,3.66841]
[1727456113916,5.30086,2726.7,2725.9,3.66841]
[1727456113917,3.66777,2726.5,2725.9,3.66843]
[1727456114118,8.30091,2726.7,2726.1,3.66817]
[1727456114422,3.66777,2726.5,2725.9,3.66841]
[1727456114581,3.66787,2726.4,2725.7,3.74204485]
[1727456114782,1.6334,2725.9,2725.5,3.66898]
[1727456115322,6.66775,2726.5,2725.5,3.66898]
[1727456115323,3.0,2726.1,2725.5,3.66898]
[1727456115484,3.66837,2726.0,2725.5,3.66898]
[1727456115680,3.66837,2726.0,2725.3,3.66922]
[1727456115986,3.66851,2725.9,2725.4,3.66917]
[1727456116290,3.66837,2726.0,2725.5,3.66904]
[1727456116497,6.66828,2726.1,2725.6,3.6689]
[1727456116691,6.66828,2726.1,2725.5,3.66904]
[1727456116692,6.66828,2726.1,2725.5,7.33801]
[1727456117026,5.3016,2726.2,2725.8,3.66854]
[1727456117027,1.6334,2726.2,2725.8,3.66854]
[1727456117333,1.6334,2726.2,2725.8,3.66862]
[1727456117500,3.66791,2726.4,2725.8,3.66862]
[1727456117817,3.66791,2726.4,2725.6,8.72228975]
[1727456117986,3.66811,2726.2,2725.6,5.05339975]
[1727456118181,3.66788,2726.4,2725.6,5.05339975]
[1727456118394,3.66788,2726.4,2725.8,3.66852]
[1727456118594,3.66788,2726.4,2725.8,7.33707]
[1727456118795,3.66825,2726.1,2725.6,3.66881]
[1727456119025,1.6359,2726.0,2725.6,3.66881]
[1727456119228,1.6359,2726.9,2726.0,1.5605]
[1727456119382,3.66753,2726.7,2726.0,5.22884]
[1727456119582,3.66758,2726.6,2726.1,3.66824]
[1727456119845,3.66758,2726.6,2726.0,5.22884]
[1727456120385,7.33481,2726.8,2726.1,3.66821]
[1727456120627,7.33481,2726.8,2726.0,5.22884]
[1727456120628,3.66739,2726.8,2726.2,3.6681]
[1727456120808,3.66739,2726.8,2726.4,3.66783]
[1727456121019,3.67243434,2727.5,2726.5,8.76173975]